{"text_format":"3","workbook":"xlsx","n_sheets":1,"sheets":["Årlig timeseddel"],"not_rendered":{"defined_names":2},"read":"whole","date_system":"1900"}

{"sheet":"Årlig timeseddel","index":0,"n_rows":140,"n_cols":12,"rows_kept":140,"merged":[[0,1,1,11],[2,6,2,7],[2,8,2,9],[5,1,5,11],[15,3,15,4],[26,3,26,4],[37,3,37,4],[39,1,39,11],[49,3,49,4],[60,3,60,4],[71,3,71,4],[73,1,73,11],[83,3,83,4],[94,3,94,4],[105,3,105,4],[107,1,107,11],[117,3,117,4],[128,3,128,4],[139,3,139,4]]}
[null,"Timeseddel for medarbejder"]
[]
[null,"Navn på medarbejder:",null,"Mailadresse:",null,null,"År til dato-totaler:"]
[null,"Leder:",null,"Telefonnummer:",null,null,"Normal arbejdstid:",{"$f":"SUM(C16,C27,C38,C50,C61,C72,C84,C95,C106,C118,C129,C140)","v":0},"Overarbejdstimer:",{"$f":"SUM(F16,F27,F38,F50,F61,F72,F84,F95,F106,F118,F129,F140)","v":0},"I alt:",{"$f":"SUM(H4,J4)","v":0}]
[]
[null,"Januar, februar, marts      Timeseddel for medarbejder: Dagligt, ugentligt, månedligt, årligt"]
[null,"Januar","Uge 1","Overarbejde","Uge 2","Overarbejde ","Uge 3","Overarbejde  ","Uge 4","Overarbejde   ","Uge 5","Overarbejde    "]
[null,"Mandag"]
[null,"Tirsdag"]
[null,"Onsdag"]
[null,"Torsdag"]
[null,"Fredag"]
[null,"Lørdag"]
[null,"Søndag"]
[null,"Samlet antal ugentlige timer",{"$f":"SUBTOTAL(109,Januar[Uge 1])","v":0},{"$f":"SUBTOTAL(109,Januar[Overarbejde])","v":0},{"$f":"SUBTOTAL(109,Januar[Uge 2])","v":0},{"$f":"SUBTOTAL(109,Januar[[Overarbejde ]])","v":0},{"$f":"SUBTOTAL(109,Januar[Uge 3])","v":0},{"$f":"SUBTOTAL(109,Januar[[Overarbejde  ]])","v":0},{"$f":"SUBTOTAL(109,Januar[Uge 4])","v":0},{"$f":"SUBTOTAL(109,Januar[[Overarbejde   ]])","v":0},{"$f":"SUBTOTAL(109,Januar[Uge 5])","v":0},{"$f":"SUBTOTAL(109,Januar[[Overarbejde    ]])","v":0}]
[null,"Jan. i alt: Normal arbejdstid",{"$f":"SUM(Januar[[#Totals],[Uge 1]],Januar[[#Totals],[Uge 2]],Januar[[#Totals],[Uge 3]],Januar[[#Totals],[Uge 4]],Januar[[#Totals],[Uge 5]])","v":0},"Jan. i alt: Overarbejde",null,{"$f":"SUM(Januar[[#Totals],[Overarbejde]],Januar[[#Totals],[Overarbejde ]],Januar[[#Totals],[Overarbejde  ]],Januar[[#Totals],[Overarbejde   ]],Januar[[#Totals],[Overarbejde    ]])","v":0}]
[]
[null,"Februar","Uge 1","Overarbejde","Uge 2","Overarbejde ","Uge 3","Overarbejde  ","Uge 4","Overarbejde   ","Uge 5","Overarbejde    "]
[null,"Mandag"]
[null,"Tirsdag"]
[null,"Onsdag"]
[null,"Torsdag"]
[null,"Fredag"]
[null,"Lørdag"]
[null,"Søndag"]
[null,"Samlet antal ugentlige timer",{"$f":"SUBTOTAL(109,Februar[Uge 1])","v":0},{"$f":"SUBTOTAL(109,Februar[Overarbejde])","v":0},{"$f":"SUBTOTAL(109,Februar[Uge 2])","v":0},{"$f":"SUBTOTAL(109,Februar[[Overarbejde ]])","v":0},{"$f":"SUBTOTAL(109,Februar[Uge 3])","v":0},{"$f":"SUBTOTAL(109,Februar[[Overarbejde  ]])","v":0},{"$f":"SUBTOTAL(109,Februar[Uge 4])","v":0},{"$f":"SUBTOTAL(109,Februar[[Overarbejde   ]])","v":0},{"$f":"SUBTOTAL(109,Februar[Uge 5])","v":0},{"$f":"SUBTOTAL(109,Februar[[Overarbejde    ]])","v":0}]
[null,"Feb. i alt: Normal arbejdstid",{"$f":"SUM(Februar[[#Totals],[Uge 1]],Februar[[#Totals],[Uge 2]],Februar[[#Totals],[Uge 3]],Februar[[#Totals],[Uge 4]],Februar[[#Totals],[Uge 5]])","v":0},"Feb. i alt: Overarbejde",null,{"$f":"SUM(Februar[[#Totals],[Overarbejde]],Februar[[#Totals],[Overarbejde ]],Februar[[#Totals],[Overarbejde  ]],Februar[[#Totals],[Overarbejde   ]],Februar[[#Totals],[Overarbejde    ]])","v":0}]
[]
[null,"Marts","Uge 1","Overarbejde","Uge 2","Overarbejde ","Uge 3","Overarbejde  ","Uge 4","Overarbejde   ","Uge 5","Overarbejde    "]
[null,"Mandag"]
[null,"Tirsdag"]
[null,"Onsdag"]
[null,"Torsdag"]
[null,"Fredag"]
[null,"Lørdag"]
[null,"Søndag"]
[null,"Samlet antal ugentlige timer",{"$f":"SUBTOTAL(109,Marts[Uge 1])","v":0},{"$f":"SUBTOTAL(109,Marts[Overarbejde])","v":0},{"$f":"SUBTOTAL(109,Marts[Uge 2])","v":0},{"$f":"SUBTOTAL(109,Marts[[Overarbejde ]])","v":0},{"$f":"SUBTOTAL(109,Marts[Uge 3])","v":0},{"$f":"SUBTOTAL(109,Marts[[Overarbejde  ]])","v":0},{"$f":"SUBTOTAL(109,Marts[Uge 4])","v":0},{"$f":"SUBTOTAL(109,Marts[[Overarbejde   ]])","v":0},{"$f":"SUBTOTAL(109,Marts[Uge 5])","v":0},{"$f":"SUBTOTAL(109,Marts[[Overarbejde    ]])","v":0}]
[null,"Mar. i alt: Normal arbejdstid",{"$f":"SUM(Marts[[#Totals],[Uge 1]],Marts[[#Totals],[Uge 2]],Marts[[#Totals],[Uge 3]],Marts[[#Totals],[Uge 4]],Marts[[#Totals],[Uge 5]])","v":0},"Mar. i alt: Overarbejde",null,{"$f":"SUM(Marts[[#Totals],[Overarbejde]],Marts[[#Totals],[Overarbejde ]],Marts[[#Totals],[Overarbejde  ]],Marts[[#Totals],[Overarbejde   ]],Marts[[#Totals],[Overarbejde    ]])","v":0}]
[]
[null,"April, maj, juni      Timeseddel for medarbejder: Dagligt, ugentligt, månedligt, årligt"]
[null,"April","Uge 1","Overarbejde","Uge 2","Overarbejde ","Uge 3","Overarbejde  ","Uge 4","Overarbejde   ","Uge 5","Overarbejde    "]
[null,"Mandag"]
[null,"Tirsdag"]
[null,"Onsdag"]
[null,"Torsdag"]
[null,"Fredag"]
[null,"Lørdag"]
[null,"Søndag"]
[null,"Samlet antal ugentlige timer",{"$f":"SUBTOTAL(109,April[Uge 1])","v":0},{"$f":"SUBTOTAL(109,April[Overarbejde])","v":0},{"$f":"SUBTOTAL(109,April[Uge 2])","v":0},{"$f":"SUBTOTAL(109,April[[Overarbejde ]])","v":0},{"$f":"SUBTOTAL(109,April[Uge 3])","v":0},{"$f":"SUBTOTAL(109,April[[Overarbejde  ]])","v":0},{"$f":"SUBTOTAL(109,April[Uge 4])","v":0},{"$f":"SUBTOTAL(109,April[[Overarbejde   ]])","v":0},{"$f":"SUBTOTAL(109,April[Uge 5])","v":0},{"$f":"SUBTOTAL(109,April[[Overarbejde    ]])","v":0}]
[null,"Apr. i alt: Normal arbejdstid",{"$f":"SUM(April[[#Totals],[Uge 1]],April[[#Totals],[Uge 2]],April[[#Totals],[Uge 3]],April[[#Totals],[Uge 4]],April[[#Totals],[Uge 5]])","v":0},"Apr. i alt: Overarbejde",null,{"$f":"SUM(April[[#Totals],[Overarbejde]],April[[#Totals],[Overarbejde ]],April[[#Totals],[Overarbejde  ]],April[[#Totals],[Overarbejde   ]],April[[#Totals],[Overarbejde    ]])","v":0}]
[]
[null,"Maj","Uge 1","Overarbejde","Uge 2","Overarbejde ","Uge 3","Overarbejde  ","Uge 4","Overarbejde   ","Uge 5","Overarbejde    "]
[null,"Mandag"]
[null,"Tirsdag"]
[null,"Onsdag"]
[null,"Torsdag"]
[null,"Fredag"]
[null,"Lørdag"]
[null,"Søndag"]
[null,"Samlet antal ugentlige timer",{"$f":"SUBTOTAL(109,Maj[Uge 1])","v":0},{"$f":"SUBTOTAL(109,Maj[Overarbejde])","v":0},{"$f":"SUBTOTAL(109,Maj[Uge 2])","v":0},{"$f":"SUBTOTAL(109,Maj[[Overarbejde ]])","v":0},{"$f":"SUBTOTAL(109,Maj[Uge 3])","v":0},{"$f":"SUBTOTAL(109,Maj[[Overarbejde  ]])","v":0},{"$f":"SUBTOTAL(109,Maj[Uge 4])","v":0},{"$f":"SUBTOTAL(109,Maj[[Overarbejde   ]])","v":0},{"$f":"SUBTOTAL(109,Maj[Uge 5])","v":0},{"$f":"SUBTOTAL(109,Maj[[Overarbejde    ]])","v":0}]
[null,"Maj i alt: Normal arbejdstid",{"$f":"SUM(Maj[[#Totals],[Uge 1]],Maj[[#Totals],[Uge 2]],Maj[[#Totals],[Uge 3]],Maj[[#Totals],[Uge 4]],Maj[[#Totals],[Uge 5]])","v":0},"Maj i alt: Overarbejde",null,{"$f":"SUM(Maj[[#Totals],[Overarbejde]],Maj[[#Totals],[Overarbejde ]],Maj[[#Totals],[Overarbejde  ]],Maj[[#Totals],[Overarbejde   ]],Maj[[#Totals],[Overarbejde    ]])","v":0}]
[]
[null,"Juni","Uge 1","Overarbejde","Uge 2","Overarbejde ","Uge 3","Overarbejde  ","Uge 4","Overarbejde   ","Uge 5","Overarbejde    "]
[null,"Mandag"]
[null,"Tirsdag"]
[null,"Onsdag"]
[null,"Torsdag"]
[null,"Fredag"]
[null,"Lørdag"]
[null,"Søndag"]
[null,"Samlet antal ugentlige timer",{"$f":"SUBTOTAL(109,Juni[Uge 1])","v":0},{"$f":"SUBTOTAL(109,Juni[Overarbejde])","v":0},{"$f":"SUBTOTAL(109,Juni[Uge 2])","v":0},{"$f":"SUBTOTAL(109,Juni[[Overarbejde ]])","v":0},{"$f":"SUBTOTAL(109,Juni[Uge 3])","v":0},{"$f":"SUBTOTAL(109,Juni[[Overarbejde  ]])","v":0},{"$f":"SUBTOTAL(109,Juni[Uge 4])","v":0},{"$f":"SUBTOTAL(109,Juni[[Overarbejde   ]])","v":0},{"$f":"SUBTOTAL(109,Juni[Uge 5])","v":0},{"$f":"SUBTOTAL(109,Juni[[Overarbejde    ]])","v":0}]
[null,"Juni i alt: Normal arbejdstid",{"$f":"SUM(Juni[[#Totals],[Uge 1]],Juni[[#Totals],[Uge 2]],Juni[[#Totals],[Uge 3]],Juni[[#Totals],[Uge 4]],Juni[[#Totals],[Uge 5]])","v":0},"Juni i alt: Overarbejde",null,{"$f":"SUM(Juni[[#Totals],[Overarbejde]],Juni[[#Totals],[Overarbejde ]],Juni[[#Totals],[Overarbejde  ]],Juni[[#Totals],[Overarbejde   ]],Juni[[#Totals],[Overarbejde    ]])","v":0}]
[]
[null,"Juli, august, september      Timeseddel for medarbejder: Dagligt, ugentligt, månedligt, årligt"]
[null,"Juli","Uge 1","Overarbejde","Uge 2","Overarbejde ","Uge 3","Overarbejde  ","Uge 4","Overarbejde   ","Uge 5","Overarbejde    "]
[null,"Mandag"]
[null,"Tirsdag"]
[null,"Onsdag"]
[null,"Torsdag"]
[null,"Fredag"]
[null,"Lørdag"]
[null,"Søndag"]
[null,"Samlet antal ugentlige timer",{"$f":"SUBTOTAL(109,Juli[Uge 1])","v":0},{"$f":"SUBTOTAL(109,Juli[Overarbejde])","v":0},{"$f":"SUBTOTAL(109,Juli[Uge 2])","v":0},{"$f":"SUBTOTAL(109,Juli[[Overarbejde ]])","v":0},{"$f":"SUBTOTAL(109,Juli[Uge 3])","v":0},{"$f":"SUBTOTAL(109,Juli[[Overarbejde  ]])","v":0},{"$f":"SUBTOTAL(109,Juli[Uge 4])","v":0},{"$f":"SUBTOTAL(109,Juli[[Overarbejde   ]])","v":0},{"$f":"SUBTOTAL(109,Juli[Uge 5])","v":0},{"$f":"SUBTOTAL(109,Juli[[Overarbejde    ]])","v":0}]
[null,"Juli i alt: Normal arbejdstid",{"$f":"SUM(Juli[[#Totals],[Uge 1]],Juli[[#Totals],[Uge 2]],Juli[[#Totals],[Uge 3]],Juli[[#Totals],[Uge 4]],Juli[[#Totals],[Uge 5]])","v":0},"Juli i alt: Overarbejde",null,{"$f":"SUM(Juli[[#Totals],[Overarbejde]],Juli[[#Totals],[Overarbejde ]],Juli[[#Totals],[Overarbejde  ]],Juli[[#Totals],[Overarbejde   ]],Juli[[#Totals],[Overarbejde    ]])","v":0}]
[]
[null,"August","Uge 1","Overarbejde","Uge 2","Overarbejde ","Uge 3","Overarbejde  ","Uge 4","Overarbejde   ","Uge 5","Overarbejde    "]
[null,"Mandag"]
[null,"Tirsdag"]
[null,"Onsdag"]
[null,"Torsdag"]
[null,"Fredag"]
[null,"Lørdag"]
[null,"Søndag"]
[null,"Samlet antal ugentlige timer",{"$f":"SUBTOTAL(109,August[Uge 1])","v":0},{"$f":"SUBTOTAL(109,August[Overarbejde])","v":0},{"$f":"SUBTOTAL(109,August[Uge 2])","v":0},{"$f":"SUBTOTAL(109,August[[Overarbejde ]])","v":0},{"$f":"SUBTOTAL(109,August[Uge 3])","v":0},{"$f":"SUBTOTAL(109,August[[Overarbejde  ]])","v":0},{"$f":"SUBTOTAL(109,August[Uge 4])","v":0},{"$f":"SUBTOTAL(109,August[[Overarbejde   ]])","v":0},{"$f":"SUBTOTAL(109,August[Uge 5])","v":0},{"$f":"SUBTOTAL(109,August[[Overarbejde    ]])","v":0}]
[null,"Aug. i alt: Normal arbejdstid",{"$f":"SUM(August[[#Totals],[Uge 1]],August[[#Totals],[Uge 2]],August[[#Totals],[Uge 3]],August[[#Totals],[Uge 4]],August[[#Totals],[Uge 5]])","v":0},"Aug. i alt: Overarbejde",null,{"$f":"SUM(August[[#Totals],[Overarbejde]],August[[#Totals],[Overarbejde ]],August[[#Totals],[Overarbejde  ]],August[[#Totals],[Overarbejde   ]],August[[#Totals],[Overarbejde    ]])","v":0}]
[]
[null,"September","Uge 1","Overarbejde","Uge 2","Overarbejde ","Uge 3","Overarbejde  ","Uge 4","Overarbejde   ","Uge 5","Overarbejde    "]
[null,"Mandag"]
[null,"Tirsdag"]
[null,"Onsdag"]
[null,"Torsdag"]
[null,"Fredag"]
[null,"Lørdag"]
[null,"Søndag"]
[null,"Samlet antal ugentlige timer",{"$f":"SUBTOTAL(109,September[Uge 1])","v":0},{"$f":"SUBTOTAL(109,September[Overarbejde])","v":0},{"$f":"SUBTOTAL(109,September[Uge 2])","v":0},{"$f":"SUBTOTAL(109,September[[Overarbejde ]])","v":0},{"$f":"SUBTOTAL(109,September[Uge 3])","v":0},{"$f":"SUBTOTAL(109,September[[Overarbejde  ]])","v":0},{"$f":"SUBTOTAL(109,September[Uge 4])","v":0},{"$f":"SUBTOTAL(109,September[[Overarbejde   ]])","v":0},{"$f":"SUBTOTAL(109,September[Uge 5])","v":0},{"$f":"SUBTOTAL(109,September[[Overarbejde    ]])","v":0}]
[null,"Sep. i alt: Normal arbejdstid",{"$f":"SUM(September[[#Totals],[Uge 1]],September[[#Totals],[Uge 2]],September[[#Totals],[Uge 3]],September[[#Totals],[Uge 4]],September[[#Totals],[Uge 5]])","v":0},"Sep. i alt: Overarbejde",null,{"$f":"SUM(September[[#Totals],[Overarbejde]],September[[#Totals],[Overarbejde ]],September[[#Totals],[Overarbejde  ]],September[[#Totals],[Overarbejde   ]],September[[#Totals],[Overarbejde    ]])","v":0}]
[]
[null,"Oktober, november, december      Timeseddel for medarbejder: Dagligt, ugentligt, månedligt, årligt"]
[null,"Oktober","Uge 1","Overarbejde","Uge 2","Overarbejde ","Uge 3","Overarbejde  ","Uge 4","Overarbejde   ","Uge 5","Overarbejde    "]
[null,"Mandag"]
[null,"Tirsdag"]
[null,"Onsdag"]
[null,"Torsdag"]
[null,"Fredag"]
[null,"Lørdag"]
[null,"Søndag"]
[null,"Samlet antal ugentlige timer",{"$f":"SUBTOTAL(109,Oktober[Uge 1])","v":0},{"$f":"SUBTOTAL(109,Oktober[Overarbejde])","v":0},{"$f":"SUBTOTAL(109,Oktober[Uge 2])","v":0},{"$f":"SUBTOTAL(109,Oktober[[Overarbejde ]])","v":0},{"$f":"SUBTOTAL(109,Oktober[Uge 3])","v":0},{"$f":"SUBTOTAL(109,Oktober[[Overarbejde  ]])","v":0},{"$f":"SUBTOTAL(109,Oktober[Uge 4])","v":0},{"$f":"SUBTOTAL(109,Oktober[[Overarbejde   ]])","v":0},{"$f":"SUBTOTAL(109,Oktober[Uge 5])","v":0},{"$f":"SUBTOTAL(109,Oktober[[Overarbejde    ]])","v":0}]
[null,"Okt. i alt: Normal arbejdstid",{"$f":"SUM(Oktober[[#Totals],[Uge 1]],Oktober[[#Totals],[Uge 2]],Oktober[[#Totals],[Uge 3]],Oktober[[#Totals],[Uge 4]],Oktober[[#Totals],[Uge 5]])","v":0},"Okt. i alt: Overarbejde",null,{"$f":"SUM(Oktober[[#Totals],[Overarbejde]],Oktober[[#Totals],[Overarbejde ]],Oktober[[#Totals],[Overarbejde  ]],Oktober[[#Totals],[Overarbejde   ]],Oktober[[#Totals],[Overarbejde    ]])","v":0}]
[]
[null,"November","Uge 1","Overarbejde","Uge 2","Overarbejde ","Uge 3","Overarbejde  ","Uge 4","Overarbejde   ","Uge 5","Overarbejde    "]
[null,"Mandag"]
[null,"Tirsdag"]
[null,"Onsdag"]
[null,"Torsdag"]
[null,"Fredag"]
[null,"Lørdag"]
[null,"Søndag"]
[null,"Samlet antal ugentlige timer",{"$f":"SUBTOTAL(109,November[Uge 1])","v":0},{"$f":"SUBTOTAL(109,November[Overarbejde])","v":0},{"$f":"SUBTOTAL(109,November[Uge 2])","v":0},{"$f":"SUBTOTAL(109,November[[Overarbejde ]])","v":0},{"$f":"SUBTOTAL(109,November[Uge 3])","v":0},{"$f":"SUBTOTAL(109,November[[Overarbejde  ]])","v":0},{"$f":"SUBTOTAL(109,November[Uge 4])","v":0},{"$f":"SUBTOTAL(109,November[[Overarbejde   ]])","v":0},{"$f":"SUBTOTAL(109,November[Uge 5])","v":0},{"$f":"SUBTOTAL(109,November[[Overarbejde    ]])","v":0}]
[null,"Nov. i alt: Normal arbejdstid",{"$f":"SUM(November[[#Totals],[Uge 1]],November[[#Totals],[Uge 2]],November[[#Totals],[Uge 3]],November[[#Totals],[Uge 4]],November[[#Totals],[Uge 5]])","v":0},"Nov. i alt: Overarbejde",null,{"$f":"SUM(November[[#Totals],[Overarbejde]],November[[#Totals],[Overarbejde ]],November[[#Totals],[Overarbejde  ]],November[[#Totals],[Overarbejde   ]],November[[#Totals],[Overarbejde    ]])","v":0}]
[]
[null,"December","Uge 1","Overarbejde","Uge 2","Overarbejde ","Uge 3","Overarbejde  ","Uge 4","Overarbejde   ","Uge 5","Overarbejde    "]
[null,"Mandag"]
[null,"Tirsdag"]
[null,"Onsdag"]
[null,"Torsdag"]
[null,"Fredag"]
[null,"Lørdag"]
[null,"Søndag"]
[null,"Samlet antal ugentlige timer",{"$f":"SUBTOTAL(109,December[Uge 1])","v":0},{"$f":"SUBTOTAL(109,December[Overarbejde])","v":0},{"$f":"SUBTOTAL(109,December[Uge 2])","v":0},{"$f":"SUBTOTAL(109,December[[Overarbejde ]])","v":0},{"$f":"SUBTOTAL(109,December[Uge 3])","v":0},{"$f":"SUBTOTAL(109,December[[Overarbejde  ]])","v":0},{"$f":"SUBTOTAL(109,December[Uge 4])","v":0},{"$f":"SUBTOTAL(109,December[[Overarbejde   ]])","v":0},{"$f":"SUBTOTAL(109,December[Uge 5])","v":0},{"$f":"SUBTOTAL(109,December[[Overarbejde    ]])","v":0}]
[null,"Dec. i alt: Normal arbejdstid",{"$f":"SUM(December[[#Totals],[Uge 1]],December[[#Totals],[Uge 2]],December[[#Totals],[Uge 3]],December[[#Totals],[Uge 4]],December[[#Totals],[Uge 5]])","v":0},"Dec. i alt: Overarbejde",null,{"$f":"SUM(December[[#Totals],[Overarbejde]],December[[#Totals],[Overarbejde ]],December[[#Totals],[Overarbejde  ]],December[[#Totals],[Overarbejde   ]],December[[#Totals],[Overarbejde    ]])","v":0}]